Cogmind - Beta 11.1 @@@ ROGUE MODE // 2022.04.26 @ 23:09:16 Player: youngster Result: Destroyed by S-10 Pest with Light Assault Rifle Performance ------------- Evolutions (0) 0 Regions Visited (4) 800 Robots Destroyed (32) 160 Value Destroyed (582) 582 Prototype IDs (0) 0 Alien Tech Used (0) 0 Bonus (60) 60 TOTAL SCORE: 1602 Bonus ------- Follower Combat Kills 60 Cogmind --------- Core Integrity 0/250 Matter 266/300 Energy 125/125 System Corruption 1% Temperature Cool (0) Movement Rolling (135) Ox3 Location -9/Mines Parts ------- > --- POWER (1) -------- Light Ion Engine > --- PROPULSION (2) --- Wheel Compact Wheel > --- UTILITY (2) ------ Huge Storage Unit Improved Light Armor Plating > --- WEAPON (2) ------- Assault Rifle Assault Rifle > --- INVENTORY (25) --- Fission Core Light Fission Core Cooling System High-capacity Matter Pod (200) Seismic Detector Core Shielding Tractor Beam Tractor Beam High-powered Tractor Beam Light EM Pulse Cannon Light EM Pulse Cannon Assault Rifle Assault Rifle Light Assault Rifle Light Assault Rifle Light Assault Rifle Heavy Assault Rifle Rocket Launcher Mini Grenade Launcher Heavy Hammer Peak State ------------ > --- POWER ------------ Light Ion Engine > --- PROPULSION ------- Wheel Compact Wheel > --- UTILITY ---------- Huge Storage Unit Improved Light Armor Plating > --- WEAPON ----------- Light EM Pulse Cannon Assault Rifle > --- INVENTORY -------- Fission Core Light Fission Core Cooling System High-capacity Matter Pod Seismic Detector Core Shielding Tractor Beam Tractor Beam High-powered Tractor Beam Light EM Pulse Cannon Assault Rifle Assault Rifle Assault Rifle Light Assault Rifle Light Assault Rifle Light Assault Rifle Heavy Assault Rifle Rocket Launcher Mini Grenade Launcher Heavy Hammer [Rating: 13] Favorites ----------- Power Ion Engine Engine Ion Engine Propulsion Light Treads Treads Light Treads Wheel Wheel Utility Huge Storage Unit Storage Huge Storage Unit Protection Core Shielding Weapon Light EM Pulse Cannon Energy Gun Medium Laser Energy Cannon Light EM Pulse Cannon Ballistic Gun Assault Rifle Launcher Rocket Launcher Build | -11 -10 -10 -10 -9 ------- Run | Scr Mat Min Exi Min Slots Evolved . | . . . . . Power . | . . . . . Propulsion . | . . . . . Utility . | . . . . . Weapon . | . . . . . Parts Attached 43 | 6 11 14 2 10 Power 4 | 1 1 1 . 1 Engine 4 | 1 1 1 . 1 Core . | . . . . . Reactor . | . . . . . Propulsion 14 | 2 5 4 . 3 Treads 8 | 2 3 2 . 1 Leg . | . . . . . Wheel 6 | . 2 2 . 2 Hover . | . . . . . Flight . | . . . . . Utility 4 | 1 2 . . 1 Device . | . . . . . Storage 2 | 1 1 . . . Processor . | . . . . . Hackware . | . . . . . Protection 2 | . 1 . . 1 Artifact . | . . . . . Weapon 21 | 2 3 9 2 5 Energy Gun 3 | 1 . . . 2 Energy Cannon 8 | . 2 4 . 2 Ballistic Gun 7 | 1 1 2 2 1 Ballistic Cannon . | . . . . . Launcher 3 | . . 3 . . Special Weapon . | . . . . . Impact Weapon . | . . . . . Slashing Weapon . | . . . . . Piercing Weapon . | . . . . . Special Melee Weapon . | . . . . . Unidentified Prototypes . | . . . . . Parts Lost 10 | . . 3 . 7 Power 2 | . . 1 . 1 Propulsion 4 | . . 1 . 3 Utility . | . . . . . Weapon 4 | . . 1 . 3 Highest Loss Streak 7 | . . 2 . 7 To Critical Strikes . | . . . . . Average Slot Usage (%) 94 | . 99 97 75 97 Engine 13 | . 14 13 14 13 Treads 16 | . 15 22 14 2 Wheel 11 | . 12 5 14 23 Storage 14 | . 14 14 14 14 Protection 13 | . 13 14 14 14 Energy Cannon 12 | . 12 16 . 11 Ballistic Gun 10 | . 14 9 4 14 Naked Turns . | . . . . . Heaviest Build 94 | 12 92 94 90 92 Greatest Support 40 | 40 40 40 10 26 Greatest Overweight (x) 9 | . 9 9 8 8 Average Overweight (x) 6 | . 7 5 8 3 Largest Inventory Capacity 25 | 8 25 25 25 25 Average Capacity 24 | 7 23 25 25 25 Most Carried 25 | 3 20 21 25 24 Average Carried 18 | 1 15 19 24 20 Final Capacity 25 | 8 25 25 25 25 Final Carried 23 | 3 20 21 23 20 Class Distribution -------------------- 91% | Mutant 8% | Scavenger-Mutant Dominant Class ---------------- Mutant | -10/Materials Mutant | -10/Mines Mutant | -10/Exiles Scavenger-Mutant | -9/Mines Resources | -11 -10 -10 -10 -9 ----------- Run | Scr Mat Min Exi Min Matter Collected 943 | 212 277 283 74 97 Remotely . | . . . . . Salvage Created 787 | . 400 272 . 115 Parts 53 | . 29 14 . 10 Haulers Intercepted 1 | . 1 . . . Recyclers Shooed . | . . . . . Parts Field Recycled . | . . . . . Retrieved Matter . | . . . . . Parts Self-Destructed . | . . . . . Prevented . | . . . . . Kills | -11 -10 -10 -10 -9 ------- Run | Scr Mat Min Exi Min Combat Hostiles Destroyed 23 | . 12 7 . 4 Guns 9 | . 6 . . 3 Cannons 6 | . 4 2 . . AOE 8 | . 2 5 . 1 Classes Destroyed 8 | . 5 2 . 1 Worker 2 | . 1 1 . . Tunneler 2 | . . 2 . . Hauler 1 | . 1 . . . Recycler 2 | . . 1 . 1 Watcher 2 | . 2 . . . Swarmer 14 | . 9 3 . 2 Grunt 7 | . 3 4 . . Demolisher 2 | . . . . 2 Best Kill Streak 6 | . 6 3 . 2 Combat Bots Only 6 | . 6 3 . 2 Max Kills in Single Turn 2 | . 2 2 . 1 Gunslinging 1 | . 1 . . . Exploded 2 | . 2 2 . 1 Melee . | . . . . . Uniques/NPCs Destroyed . | . . . . . Combat | -11 -10 -10 -10 -9 -------- Run | Scr Mat Min Exi Min Damage Taken 1402 | . 365 350 . 687 Core 255 | . 58 48 . 149 Absorbed by Shields . | . . . . . Redirected to Shielding 43 | . 12 9 . 22 Regen/Repaired (Parts) 86 | . 86 . . . Core Remaining (%) 100 | 100 . . . . Volleys Fired 86 | . 34 36 . 16 Largest 2 | . 2 2 . 2 Hottest 112 | . 76 112 . 76 Shots Fired 148 | . 68 49 . 31 Gun 86 | . 43 18 . 25 Cannon 52 | . 25 21 . 6 Launcher 10 | . . 10 . . Special . | . . . . . Kinetic 81 | . 43 18 . 20 Thermal . | . . . . . Explosive 10 | . . 10 . . Electromagnetic 57 | . 25 21 . 11 Robot Hit Streak 9 | . 9 9 . 7 Robot Miss Streak 3 | . 3 3 . 3 Penetration Max . | . . . . . Secondary Targets 3 | . 2 . . 1 Max Gunslinging Chain 1 | . 1 . . 1 Shots Hit Robots 91 | . 44 28 . 19 Core Hits 47 | . 19 21 . 7 Critical Kills . | . . . . . Critical Parts Destroyed . | . . . . . Critical Strikes . | . . . . . Melee Attacks . | . . . . . Impact . | . . . . . Slashing . | . . . . . Piercing . | . . . . . Sneak Attacks . | . . . . . Combat Hostiles . | . . . . . Follow-up Attacks . | . . . . . Damage Inflicted 2282 | . 913 1038 . 331 Guns 639 | . 335 125 . 179 Cannons 868 | . 506 301 . 61 Explosions 764 | . 72 601 . 91 Melee . | . . . . . Ramming 11 | . . 11 . . Kinetic 603 | . 335 125 . 143 Thermal 250 | . 72 87 . 91 Explosive 514 | . . 514 . . Electromagnetic 904 | . 506 301 . 97 Impact . | . . . . . Slashing . | . . . . . Piercing . | . . . . . Highest Corruption 1 | . 1 1 1 1 Average Corruption 1 | . 1 1 1 1 Corruption Purged . | . . . . . Corruption Blocked . | . . . . . Effects 25 | . 6 12 3 4 Message Errors 8 | . 3 3 1 1 Matter Fused 6 | . . 4 1 1 Heat Flow Errors 2 | . 1 1 . . Energy Discharges 3 | . 1 1 1 . Parts Rejected 1 | . . 1 . . Data Loss (minor) 3 | . 1 1 . 1 Data Loss (major) 2 | . . 1 . 1 Overload Shots . | . . . . . Overflow Damage 69 | . 26 43 . . Projectiles 40 | . 26 14 . . Explosions 29 | . . 29 . . Melee . | . . . . . Knockbacks . | . . . . . Impact . | . . . . . Kinetic . | . . . . . Secondary . | . . . . . Self-Inflicted Damage 79 | . . 79 . . Shots 3 | . . 3 . . Rammed 2 | . . 2 . . Targets Rammed 2 | . . 2 . . Kicked . | . . . . . Crushed . | . . . . . Highest Temperature 176 | . 105 176 . 30 Average Temperature 43 | . 35 61 . 15 Received Heat Transfer 216 | . 78 138 . . Siege Activations . | . . . . . Robots Corrupted 1 | . 1 . . . Combat Hostiles . | . . . . . Parts Fried 5 | . 4 1 . . Impact Corruptions . | . . . . . Robots Melted . | . . . . . Combat Hostiles . | . . . . . Parts Melted . | . . . . . Heat Transferred 250 | . 50 100 . 100 Parts Sabotaged . | . . . . . Parts Stolen . | . . . . . Parts Stripped . | . . . . . Power Chain Reactions 5 | . 1 2 . 2 Missiles Intercepted . | . . . . . Alert | -11 -10 -10 -10 -9 ------- Run | Scr Mat Min Exi Min Peak Influence 282 | . 282 213 . 50 Initial 28 | . . 28 . . Average 67 | . 89 67 . 14 Maximum Alert Level 1 | . 1 1 . . Low Security (%) 94 | 100 91 95 . 100 Level 1 5 | . 8 4 . . Level 2 . | . . . . . Level 3 . | . . . . . Level 4 . | . . . . . Level 5 . | . . . . . High Security . | . . . . . Max Security . | . . . . . Squads Dispatched 3 | . 3 . . . Investigation 2 | . 2 . . . Extermination . | . . . . . Reinforcement 1 | . 1 . . . Assault . | . . . . . Garrison . | . . . . . Intercept . | . . . . . Searches Triggered . | . . . . . Construction Impeded . | . . . . . Haulers Reinforced . | . . . . . Active Scanning Responses . | . . . . . Cargo Convoy Interrupts . | . . . . . Stealth | -11 -10 -10 -10 -9 --------- Run | Scr Mat Min Exi Min Distress Signals . | . . . . . Communications Jammed . | . . . . . Distress Signals . | . . . . . Times Spotted 28 | . 15 8 . 5 Peak Tracking Total 6 | . 6 3 . 3 Tactical Retreats . | . . . . . Traps | -11 -10 -10 -10 -9 ------- Run | Scr Mat Min Exi Min Traps Triggered . | . . . . . Indirectly . | . . . . . Trap Hack Attempts . | . . . . . Triggered . | . . . . . Disarmed . | . . . . . Reprogrammed . | . . . . . Reused . | . . . . . Traps Extracted . | . . . . . Installed . | . . . . . Triggered . | . . . . . Machines | -11 -10 -10 -10 -9 ---------- Run | Scr Mat Min Exi Min Machines Disabled 1 | . . 1 . . Max in Single Turn 1 | . . 1 . . Machines Sabotaged . | . . . . . Garrisons Compromised . | . . . . . Overloaded Fab Kills . | . . . . . Hacking | -11 -10 -10 -10 -9 --------- Run | Scr Mat Min Exi Min Machines Accessed 10 | . 9 . 1 . Terminals 6 | . 6 . . . Fabricators . | . . . . . Repair Stations 1 | . 1 . . . Recycling Units 2 | . 2 . . . Scanalyzers . | . . . . . Garrison Access . | . . . . . Total Hacks 26 | . 25 . 1 . Successful 12 | . 11 . 1 . Failed 14 | . 14 . . . Catastrophic 3 | . 3 . . . Database Lockouts . | . . . . . Manual 16 | . 16 . . . Terminals 17 | . 17 . . . Fabricators . | . . . . . Repair Stations 5 | . 5 . . . Recycling Units 3 | . 3 . . . Scanalyzers . | . . . . . Garrison Access . | . . . . . Terminal Hacks 6 | . 5 . 1 . Record 1 | . . . 1 . Robot Analysis 2 | . 2 . . . Terminal Index 1 | . 1 . . . Locate Traps 1 | . 1 . . . Hauler Manifests 1 | . 1 . . . Fabricator Hacks . | . . . . . Repair Station Hacks 4 | . 4 . . . Scan Component 2 | . 2 . . . Repair 2 | . 2 . . . Recycling Unit Hacks . | . . . . . Scanalyzer . | . . . . . Garrison Access Hacks . | . . . . . Unauthorized Hacks 2 | . 2 . . . Terminals . | . . . . . Fabricators . | . . . . . Repair Stations . | . . . . . Recycling Units 2 | . 2 . . . Tunnel 2 | . 2 . . . Scanalyzers . | . . . . . Garrison Access . | . . . . . Data Cores Recovered . | . . . . . Used . | . . . . . Hacking Detections 6 | . 6 . . . Full Trace Events 1 | . 1 . . . Feedback Events 1 | . 1 . . . Corruption 1 | . 1 . . . Feedback Blocked . | . . . . . Robot Schematics Acquired . | . . . . . Robots Built . | . . . . . Authchips . | . . . . . Time . | . . . . . Total Robot Build Rating . | . . . . . Part Schematics Acquired . | . . . . . Parts Built . | . . . . . Authchips . | . . . . . Time . | . . . . . Total Part Build Rating . | . . . . . Parts Repaired 2 | . 2 . . . Time 52 | . 52 . . . Parts Recycled . | . . . . . Recycled Matter . | . . . . . Retrieved Matter . | . . . . . Retrieved Components . | . . . . . Parts Scanalyzed . | . . . . . Part Schematics Acquired . | . . . . . Parts Damaged . | . . . . . Bothacking | -11 -10 -10 -10 -9 ------------ Run | Scr Mat Min Exi Min Used RIF Installer . | . . . . . Robots Hacked . | . . . . . Non-combat . | . . . . . Combat . | . . . . . Robot Hacks Applied . | . . . . . Relay Couplers Released . | . . . . . Fabnet Peak Effective % . | . . . . . Robots Rewired . | . . . . . Allies Hacked . | . . . . . Hacks Repelled . | . . . . . Allies | -11 -10 -10 -10 -9 -------- Run | Scr Mat Min Exi Min Total Allies 2 | . . 2 . . Largest Group 2 | . . 2 2 . Highest-Rated Group 45 | . . 45 45 . Highest-Rated Ally 31 | . . 31 31 . Total Orders . | . . . . . Ally Attacks 8 | . . 8 . . Total Damage 108 | . . 108 . . Kills 2 | . . 2 . . Allies Corrupted . | . . . . . Allies Melted . | . . . . . Intel | -11 -10 -10 -10 -9 ------- Run | Scr Mat Min Exi Min Robot Analysis Total 2 | . 2 . . . Derelict Logs Recovered 5 | . . 3 . 2 Drone Launches . | . . . . . Drone Recoveries . | . . . . . Exploration | -11 -10 -10 -10 -9 ------------- Run | Scr Mat Min Exi Min Turns Passed 4898 | 73 1643 1891 698 593 Spaces Moved 2104 | 41 694 670 343 356 Core 3 | 3 . . . . Treads 437 | 38 79 320 . . Legs . | . . . . . Wheels 1664 | . 615 350 343 356 Hover . | . . . . . Flight . | . . . . . Fastest Speed 50 | 50 160 200 200 135 Average Speed 212 | 151 208 263 200 142 Slowest Speed 320 | 160 215 320 200 200 Overloaded Moves . | . . . . . Propulsion Burnouts . | . . . . . Robots Hopped . | . . . . . Cave-ins Triggered . | . . . . . Exploration Rate (%) 68 | 5 99 98 77 63 Regions Visited 4 Branch Regions 3 Pre-discovered Areas 7 | . 2 1 1 3 Known Exits Taken . | . . . . . Unknown Exits Taken 4 | 1 1 1 1 . Scrap Searched 5 | . . 3 . 2 Spaces Dug 27 | . . 27 . . Terrain Destroyed 92 | . 3 86 . 3 Melee . | . . . . . Projectile . | . . . . . AOE 92 | . 3 86 . 3 Terrain Rammed . | . . . . . Walls Destroyed . | . . . . . Machines Disabled . | . . . . . Actions | -11 -10 -10 -10 -9 --------- Run | Scr Mat Min Exi Min Total 2375 | 49 821 739 357 409 Wait 103 | . 61 13 7 22 Move 2100 | 40 693 669 342 356 Hop . | . . . . . Pick Up 33 | 3 18 5 3 4 Fast Attach 12 | 6 5 . . 1 Attach 13 | . . 4 2 7 Detach 2 | . . . 2 . Swap 18 | . 6 10 . 2 Drop 6 | . 4 . 1 1 Fire 86 | . 34 36 . 16 Melee . | . . . . . Ram . | . . . . . Kick . | . . . . . Crush 2 | . . 2 . . Escape Stasis . | . . . . . Rewire . | . . . . . Trap . | . . . . . Miscellaneous . | . . . . . Route ------- -11/Scrapyard -10/Materials (discovered 4 exits: [*Mat x3] / [*Min]) -10/Mines (discovered 3 exits: [*Mat x2] / *Exi) -10/Exiles -9/Mines (discovered 1 exit: [*Mat]) History --------- Turn | Location | Event 27 | -11/Scrapyard | Discovered new exit (range 15) 74 | -11/Scrapyard | Entered Materials 302 | -10/Materials | Build established: Mutant 377 | -10/Materials | Discovered new exit (range 16) 790 | -10/Materials | Discovered new exit (range 4) 962 | -10/Materials | Repaired Lgt. Treads 1161 | -10/Materials | Discovered new exit (range 8) 1541 | -10/Materials | Discovered new exit (range 7) 1660 | -10/Materials | Repaired Lgt. Treads 1717 | -10/Materials | Entered Mines 1724 | -10/Mines | Received a Rocket Launcher from a helpful Derelict 2051 | -10/Mines | Deemed a non-threat by the Exiles lab entrance 2053 | -10/Mines | Discovered new exit (range 5) 2773 | -10/Mines | Discovered new exit (range 14) 2831 | -10/Mines | Discovered new exit (range 5) 2969 | -10/Mines | Learned Materials stockpile data 3608 | -10/Mines | Entered Exiles 3608 | -10/Exiles | Accompanied by 2 allies 3638 | -10/Exiles | Led the pair of lost Derelicts to a safe place 3667 | -10/Exiles | Met 8R-AWN 3708 | -10/Exiles | Met EX-HEX 3786 | -10/Exiles | Met EX-DEC 3796 | -10/Exiles | Learned location of Zion (-7) 3971 | -10/Exiles | Visited The Gauntlet 4282 | -10/Exiles | Discovered new exit (range 14) 4306 | -10/Exiles | Entered Mines 4342 | -9/Mines | Assembled infested the area 4395 | -9/Mines | Core integrity fell below 50% 4412 | -9/Mines | Core integrity fell below 20% 4452 | -9/Mines | Lost 7 parts (1p3n3w) 4577 | -9/Mines | Discovered new exit (range 12) 4781 | -9/Mines | Build established: Scavenger-Mutant 4827 | -9/Mines | Learned location of Storage (-9) 4899 | -9/Mines | Destroyed by S-10 Pest with Light Assault Rifle Last Messages --------------- 04563_ Found 19 Matter. 04577_ EXIT=FOUND 04607_ K-01 Serf collects debris. 04781_ Acquired 1 matter. 04782_ Acquired 2 matter. 04806_ Searching scrap... 04806_ Found Particle Cannon. 04806_ Found 12 Matter. 04818_ Acquired derelict log, extracted data. World map updated: -9/Materials. 04827_ A derelict emerges from the shadows: "Are any of them following you? I'm here trying to lose some heat after our second raid on Storage failed. Whatever you do stay away from that place, they've tightened security following our previous successful raids." World map updated: -9/Storage. 04829_ JF-UH3(g): "We scattered so the Unaware couldn't effectively use their advantage in numbers, and I suggest you do the same." 04829_ JF-UH3(g) slips back into the shadows. 04887_ S-10 Pest destroyed. 04897_ System corrupted: Component data lost. Map ----- +----------------------------------------------------+ | | | | | | | | | ????????????????????????????????? | | ????????????????????????????????? | | ????????????????????????????????? | | ????????????????????????????????? | | ????????????????????????????????? | | ????????????????????????????????? | | ????????????????????????????????? | | ????????????????????????????????? | | ????????????????????????????????? | | ????????????????????????????????? | | ??????##????????????????????????? | | ?????? ????????????????????????? | | ?????"" ????????????????????????? | | ????""" ""??????????????????????? | | ?????"" """ ????????????????????? | | ????? ????????????????????? | | ??????" """?????????????????????? | | ??????" """?????????????????????? | | ??????? ""??????????????????????? | | ???????==%??????????????????????? | | ???????#s#??????????????????????? | | ???????#@#??????????????????????? | | ???????#*#??????????????????????? | | ???????# #??????????????????????? | | ???????# #####??????????????????? | | ???????# #??????????????????? | | ???????##### #??????????????????? | | ???????????# #??????????????????? | | ???????????# #??????????????????? | | ???????????# #??????????????????? | | ???????????# #?????#####????????? | | ?########### ####### ##???????? | | ?# #???????? | | ?# ]% #???????? | | ?# ############# ##???????? | | ?# #???????????# ##???????? | | ?# ####????????## ##??#???? | | ?# ##????????## ######## | | ?# ####??????## | | ?# ##??????### ######## | | ?# ##???????## #????### | | ?## #????????# #????# | | ??###### #????????# ##?### # | | ???????## ##???????## ## # # | | ????????# ##????????# # # # | | ????????# #?????????# | +----------------------------------------------------+ Best States ------------- Heat Dissipation 25 Energy Generation 10 Energy Capacity 250 Matter Stores 300 Matter Capacity 300 Sight Range 16 Terrain Scan Density 10 Armor Coverage 150 Core Shielding 20 Evasion (%) 40 Recoil Reduction 2 Item Schematics ----------------- None Robot Schematics ------------------ None Fabricated ------------ Nothing Alien Tech Used ----------------- None Achievements -------------- None Challenges ------------ None Game ------ Seed AdvancedRagnarokNetwork Manual? 0 Play Time 00:21:25 Cumulative 279.5 hours Start 2022.04.26 @ 13:22:47 End 2022.04.26 @ 23:09:16 Sessions 3 Manual Loads 0 Difficulty Rogue Special Mode None Game No. 126 Rogue 126 Adventurer 0 Explorer 0 Win Type - Total 7 Types 5/0/0/1/0/0/0/1/0 Lore% 87 Gallery% 89 Achievement% 68 Wizard Run 0 Options --------- ASCII 0 Keyboard 1 Movement Vi Keybinds 0 Fullscreen 2 Font 18/Cog Map View 76x50 Tactical HUD 1 Map Filters NONE Filters NONE Steam 0 RUN: d3e4c76b-9fcb-4acc-9665-95aeddb057cf